bitfinex/quotes_ETHUSD_20250824
["timestamp","ask_amount","ask_price","bid_price","bid_amount"]
[1755999345166,1e-08,4783.8,4783.7,6.35693209]
[1755999345481,1e-08,4783.8,4783.7,7.12173209]
[1755999345780,1e-08,4784.1,4784.0,2.750301]
[1755999345965,1e-08,4784.1,4784.0,6.578501]
[1755999346170,0.02,4784.8,4784.7,2.08999519]
[1755999346341,0.02,4784.8,4784.7,5.91819519]
[1755999346675,0.02,4784.8,4784.7,7.42282097]
[1755999347144,0.02,4784.8,4784.7,8.08282097]
[1755999347342,0.2136,4785.6,4785.5,2.0896458]
[1755999347548,0.2136,4785.6,4785.5,5.9168458]
[1755999347754,0.02,4785.8,4785.7,2.08955847]
[1755999347968,0.02,4785.8,4785.7,5.60455847]
[1755999349291,0.021,4785.8,4785.7,5.60455847]
[1755999349463,0.02,4785.8,4785.7,5.60455847]
[1755999349661,0.02,4785.8,4785.7,6.34925847]
[1755999350494,0.02,4785.8,4785.7,6.03935847]
[1755999350859,0.02,4785.8,4785.7,6.34925847]
[1755999351059,0.02,4785.8,4785.7,6.03935847]
[1755999351466,0.02,4785.8,4785.7,6.34925847]
[1755999351679,0.02,4785.8,4785.7,7.2036289]
[1755999352360,0.02,4785.8,4785.7,7.3084289]
[1755999353572,0.02,4785.8,4785.7,5.70935847]
[1755999353889,0.2896,4785.8,4785.7,5.60455847]
[1755999354493,0.02,4785.8,4785.7,5.60455847]
[1755999358498,0.02,4785.8,4785.7,6.34925847]
[1755999359471,0.02,4785.8,4785.7,5.60455847]
[1755999360097,0.02,4785.8,4785.7,6.34925847]
[1755999360268,0.119,4785.8,4785.5,1.607]
[1755999360468,0.119,4785.8,4785.6,3.514]
[1755999360795,0.2764,4785.7,4784.9,2.08989657]
[1755999361109,0.2764,4785.7,4785.3,2.08969358]
[1755999361440,0.648008,4785.8,4785.4,3.514]
[1755999361862,0.648008,4785.8,4785.6,2.08957672]
[1755999362066,0.648008,4785.8,4785.7,3.514]
[1755999362266,0.747008,4785.8,4785.7,3.514]
[1755999362467,0.851808,4785.8,4785.7,3.514]
[1755999362664,0.752808,4785.8,4785.7,5.60355847]
[1755999363297,0.1511,4785.8,4785.7,5.60355847]
[1755999363663,0.1248,4785.8,4785.7,5.91345847]
[1755999363874,0.1248,4785.8,4785.7,6.34825847]
[1755999364883,0.1248,4785.8,4785.7,5.60355847]
[1755999365289,0.1511,4785.8,4785.7,3.514]
[1755999365487,0.1511,4785.8,4785.4,2.08965602]
[1755999365685,0.1511,4785.8,4785.5,5.6026412]
[1755999365885,0.1511,4785.8,4785.5,3.513]
[1755999366398,0.1511,4785.8,4785.6,2.08956285]
[1755999366599,0.1511,4785.8,4785.7,3.513]
[1755999367007,0.02,4785.8,4785.7,5.91245847]
[1755999367214,0.02,4785.8,4785.7,6.93850432]
[1755999367516,0.022,4785.8,4785.7,7.04330432]
[1755999369170,0.022,4785.8,4785.7,7.70330432]
[1755999371131,0.022,4785.8,4785.7,3.53030432]
[1755999371425,0.022,4785.8,4785.7,5.70735847]
[1755999371706,0.289,4785.8,4785.7,5.70735847]
[1755999372480,0.022,4785.8,4785.7,5.70735847]
[1755999373108,0.022,4785.8,4785.7,6.01725847]
[1755999373322,0.022,4785.8,4785.7,6.45205847]
[1755999373505,0.022,4785.8,4785.7,7.46692726]
[1755999373988,0.022,4785.8,4785.7,8.12692726]
[1755999375190,1e-08,4785.8,4785.7,8.12692726]
[1755999376524,1e-08,4785.8,4785.7,3.95392726]
[1755999376684,1e-08,4785.8,4785.7,6.72122726]
[1755999377037,0.00100001,4785.8,4785.7,5.70635847]
[1755999378015,1e-08,4785.8,4785.7,6.45105847]
[1755999379514,1e-08,4785.8,4785.7,2.19435847]
[1755999379718,1e-08,4785.8,4785.7,5.70635847]
[1755999379892,1e-08,4785.8,4785.7,6.93178987]
[1755999380086,1e-08,4785.8,4785.7,6.63948987]
[1755999380294,1e-08,4785.8,4785.7,7.37788987]
[1755999380590,1e-08,4785.8,4785.7,8.03788987]
[1755999380800,1e-08,4785.8,4785.7,8.24428987]
[1755999381210,0.2064,4787.5,4786.9,2.08900534]
[1755999381403,0.1048,4787.4,4786.5,0.1048]
[1755999381599,0.267,4786.6,4786.5,2.19400553]
[1755999381910,0.267,4786.6,4786.5,5.60120553]
[1755999382421,0.1048,4787.1,4787.0,2.08899101]
[1755999382620,0.1048,4787.1,4787.0,5.60099101]
[1755999382921,0.627896,4787.3,4787.2,2.08890374]
[1755999383122,0.627896,4787.3,4787.2,5.60090374]
[1755999383323,0.1048,4787.4,4787.2,5.60090374]
[1755999383524,0.1048,4787.4,4787.3,2.0888601]
[1755999383708,0.1048,4787.4,4787.2,3.512]
[1755999383910,0.1681,4787.3,4787.2,3.512]
[1755999384305,0.1681,4787.3,4787.2,5.60090374]
[1755999384900,0.1681,4787.3,4787.2,3.512]
[1755999385250,0.1681,4787.3,4787.2,5.60090374]
[1755999385432,0.1681,4787.3,4787.2,3.512]
[1755999386228,0.2729,4787.3,4787.2,3.512]
[1755999386924,0.2729,4787.3,4787.2,5.60090374]
[1755999387092,0.3268478,4787.6,4787.2,4.57528744]
[1755999387297,0.2038,4787.3,4786.8,0.02]
[1755999387500,0.2038,4787.3,4786.8,2.10903677]
[1755999387823,0.2038,4787.3,4786.9,3.511]
[1755999388027,0.2038,4787.3,4787.0,2.08898725]
[1755999388225,0.2038,4787.3,4787.1,5.59994123]
[1755999388536,0.2038,4787.3,4787.1,3.511]
[1755999390835,6.62848065,4787.2,4786.8,0.02]
[1755999391025,3.0,4787.1,4786.9,3.511]
[1755999391542,0.1048,4787.0,4786.9,3.511]
[1755999391744,0.301,4787.0,4786.9,3.511]
[1755999395128,0.301,4787.0,4786.5,1.607]
[1755999395443,0.1048,4786.7,4786.6,3.511]
[1755999396367,0.1048,4786.7,4786.6,5.60016558]
[1755999396649,0.1048,4786.7,4786.6,6.33856558]
[1755999397567,0.1048,4786.7,4786.6,3.511]
[1755999397943,0.1048,4786.7,4786.6,6.33856558]
[1755999399322,0.1048,4786.7,4786.6,3.511]
[1755999400340,0.1048,4786.7,4786.6,5.60016558]
[1755999400847,0.1048,4786.7,4786.6,3.511]
[1755999401253,0.1048,4786.7,4786.5,3.69619917]
[1755999401432,0.1048,4786.7,4786.6,3.511]
[1755999403139,0.1048,4786.7,4786.6,5.60016558]
[1755999403655,0.1048,4786.7,4786.6,6.04626558]
[1755999404167,0.1048,4786.7,4786.6,6.33856558]
[1755999405671,0.1048,4786.7,4786.6,4.2494]
[1755999405872,0.1048,4786.7,4786.5,3.69620909]
[1755999406067,0.1048,4786.7,4786.6,3.511]
[1755999406434,0.2038,4786.7,4786.6,3.511]
[1755999406776,0.2038,4786.7,4786.5,1.607]
[1755999407067,0.2038,4786.7,4786.6,3.511]
[1755999408048,0.2038,4786.7,4786.5,1.607]
[1755999408372,0.2038,4786.7,4786.4,2.08923853]
[1755999408571,0.2038,4786.7,4786.5,3.511]
[1755999408875,0.1048,4786.2,4786.1,3.512]
[1755999409172,0.1048,4786.2,4786.1,0.001]
[1755999409357,10.00288065,4786.2,4786.1,0.001]
[1755999414081,3.3744,4786.2,4786.1,0.001]
[1755999414296,3.1048,4786.2,4786.1,0.4583]
[1755999414578,3.1048,4786.2,4786.1,0.001]
[1755999414991,3.2038,4786.2,4786.1,0.001]
[1755999416368,5.91178171,4786.2,4786.1,0.001]
[1755999416869,6.74741676,4786.2,4786.1,0.001]
[1755999417247,6.18948995,4786.2,4786.1,0.001]
[1755999417881,6.84948995,4786.2,4786.1,0.001]
[1755999418185,9.62848065,4785.7,4785.6,0.001]
[1755999418351,13.78942218,4785.7,4785.6,0.001]
[1755999418765,3.64994153,4785.7,4785.6,0.001]
[1755999418970,3.43177014,4785.7,4785.6,0.7678]
[1755999419162,0.1048,4785.7,4785.6,3.14324692]
[1755999419847,0.1048,4785.7,4785.6,2.85740213]
[1755999420458,0.1048,4785.7,4785.6,0.7678]
[1755999420658,0.1048,4785.7,4785.6,0.001]
[1755999421262,0.2021,4785.7,4785.6,0.001]
[1755999422158,0.1048,4785.7,4785.6,0.7678]
[1755999422955,0.1048,4785.7,4785.6,2.85740213]
[1755999425382,3.0,4786.1,4785.9,2.08944047]
[1755999425558,3.0,4786.1,4786.0,2.85622749]
[1755999425756,0.32693158,4786.4,4786.1,2.08938384]
[1755999425988,7.046,4787.0,4786.4,2.08925288]
[1755999426285,0.1048,4786.7,4786.5,0.4573]
[1755999426491,0.1048,4786.7,4786.6,2.39866558]
[1755999426795,0.1048,4786.7,4786.6,2.85596558]
[1755999426952,0.1048,4787.0,4786.6,4.2778]
[1755999427153,0.1048,4787.0,4786.7,2.54642181]
[1755999427356,0.1048,4787.0,4786.9,0.3095]
[1755999428059,0.1048,4787.0,4786.9,0.7668]
[1755999428995,0.1048,4787.0,4786.9,0.3095]
[1755999429163,0.1048,4787.0,4786.9,0.7668]
[1755999430012,0.1048,4787.0,4786.9,2.85583465]
[1755999430165,0.1048,4787.3,4787.1,2.08890677]
[1755999430493,0.1048,4787.3,4787.2,4.2768]
[1755999430659,0.1048,4787.3,4787.2,6.36570374]
[1755999431598,0.1048,4787.5,4787.4,2.08880193]
[1755999431900,0.1048,4787.5,4787.4,2.85560193]
[1755999432391,0.1048,4787.5,4787.4,0.7668]
[1755999432763,0.1048,4787.5,4787.4,2.85561647]
[1755999432968,0.1048,4787.5,4787.4,0.7668]
[1755999433596,0.1048,4787.5,4787.4,2.85561647]
[1755999433911,0.1048,4787.5,4787.4,0.7668]
[1755999434115,0.1048,4787.5,4787.1,0.4573]
[1755999434266,0.2038,4787.5,4787.2,3.51]
[1755999434471,0.099,4787.5,4787.2,3.51]
[1755999434667,0.1048,4787.3,4787.2,3.51]
[1755999434904,0.1048,4787.3,4787.2,4.2768]
[1755999437887,0.1048,4787.3,4787.2,6.36570374]
[1755999438090,0.02,4787.8,4787.2,4.2768]
[1755999438390,0.1048,4787.5,4787.2,3.8195]
[1755999438698,0.1048,4787.5,4787.2,4.2696]
[1755999439592,3.1048,4787.5,4787.2,3.51]
[1755999439800,0.099,4787.3,4787.2,3.509]
[1755999440671,3.1048,4787.5,4787.2,3.509]
[1755999442003,0.1048,4787.6,4787.4,0.2858]
[1755999442392,0.1048,4787.6,4787.5,0.4501]
[1755999442886,0.1048,4787.6,4787.5,0.7359]
[1755999445182,0.1048,4787.6,4787.2,3.509]
[1755999445183,0.2038,4787.6,4787.2,3.509]
[1755999446209,0.2038,4787.6,4787.2,3.9591]
[1755999446415,0.1048,4787.6,4787.3,0.4501]
[1755999446612,0.1048,4787.6,4787.2,3.509]
[1755999446816,0.1048,4787.6,4787.4,0.4501]
[1755999446984,0.1048,4787.6,4787.2,3.509]
[1755999447187,6.62848065,4787.6,4787.2,3.509]
[1755999447389,0.1048,4787.3,4787.2,3.509]
[1755999447788,0.1048,4787.3,4787.2,3.7948]
[1755999448113,0.02,4787.8,4787.2,6.33380374]
[1755999448419,0.1048,4787.5,4787.3,0.4501]
[1755999448623,0.1048,4787.5,4787.4,0.7359]
[1755999451115,0.1048,4787.5,4787.4,2.82471647]
[1755999451315,0.1248,4787.8,4787.4,0.7359]
[1755999451489,0.1248,4787.8,4787.4,0.2858]
[1755999451687,0.1248,4787.8,4787.5,0.4501]
[1755999452018,0.1248,4787.8,4787.7,0.2858]
[1755999452389,0.1248,4787.8,4787.7,0.7359]
[1755999454421,0.02,4787.8,4787.7,0.7359]
[1755999456793,0.02,4787.8,4787.7,2.82458559]
[1755999457997,0.02,4787.8,4787.7,3.66682023]
[1755999458193,0.02,4787.8,4787.7,3.77162023]
[1755999464434,0.02,4787.8,4787.7,5.98728559]
[1755999464735,0.02,4787.8,4787.7,4.3487]
[1755999465109,0.02,4787.8,4787.7,5.98728559]
[1755999465343,0.022,4787.8,4787.7,6.33258559]
[1755999466668,0.022,4787.8,4787.7,7.29000121]
[1755999468947,0.022,4787.8,4787.7,6.83990121]
[1755999469157,0.022,4787.8,4787.7,7.30180121]
[1755999472478,0.022,4787.8,4787.7,3.79380121]
[1755999472674,0.022,4787.8,4787.7,7.30080121]
[1755999474755,0.44789982,4789.1,4788.4,2.08835761]
[1755999474944,0.1048,4788.8,4788.5,5.59532842]
[1755999475139,0.099,4788.6,4788.5,5.59532842]
[1755999475556,0.099,4788.6,4788.5,3.507]
[1755999475790,0.099,4788.6,4788.5,5.59533663]
[1755999476297,0.1048,4788.8,4788.7,2.08824942]
[1755999476468,0.1048,4789.1,4788.7,5.898744]
[1755999476991,0.1048,4789.1,4788.8,2.08820303]
[1755999477288,0.1048,4789.1,4788.9,3.507]
[1755999478194,0.4257609,4789.0,4788.9,3.507]
[1755999480279,3.2706,4789.0,4788.6,3.507]
[1755999480595,0.1048,4788.6,4788.4,3.507]
[1755999480797,0.0997,4788.5,4788.2,3.507]
[1755999480966,0.1048,4788.3,4788.2,3.507]
[1755999481158,0.2052,4788.3,4788.2,3.507]
[1755999481365,0.2052,4788.3,4788.0,3.507]
[1755999482995,6.62848065,4788.6,4788.3,2.08840962]
[1755999482996,0.1048,4788.6,4788.3,2.08840962]
[1755999483199,0.1048,4788.6,4788.5,2.39183663]
[1755999483359,0.1048,4788.9,4788.4,3.507]
[1755999484177,0.1048,4788.9,4788.5,2.08833618]
[1755999484996,0.1048,4788.9,4788.5,2.55023618]
[1755999485296,0.1048,4788.9,4788.8,0.3035]
[1755999485521,0.1048,4788.9,4788.6,3.9679]
[1755999486009,0.1048,4788.9,4788.6,3.506]
[1755999487124,0.04,4788.8,4788.6,3.506]
[1755999487330,0.04,4788.8,4788.7,0.3035]
[1755999487629,0.04,4788.8,4788.7,3.23459942]
[1755999488183,0.04,4788.8,4788.7,1.14635]
[1755999488390,0.04,4788.8,4788.7,3.23459942]
[1755999490517,0.04,4788.8,4788.7,3.33939942]
[1755999494918,0.04,4788.8,4788.7,0.38095]
[1755999495118,0.04,4788.8,4788.6,5.59428855]
[1755999495317,0.04,4788.8,4788.7,2.08824942]
[1755999496315,0.04,4788.8,4788.7,2.85364942]
[1755999497188,0.04,4788.8,4788.7,2.08824942]
[1755999498030,0.04,4788.8,4788.7,2.55014942]
[1755999498211,0.04,4788.8,4788.7,0.3035]
[1755999498529,0.04,4788.8,4788.7,5.59324942]
[1755999498701,0.042,4788.8,4788.7,5.59324942]
[1755999500236,0.042,4788.8,4788.7,6.04734942]
[1755999500633,0.141,4788.8,4788.7,3.505]
[1755999501127,0.042,4788.8,4788.7,3.505]
[1755999501327,0.042,4788.8,4788.7,5.59324942]
[1755999501500,0.042,4788.8,4788.7,6.04734942]
[1755999501695,0.042,4788.8,4788.7,3.9591]
[1755999501900,0.042,4788.8,4788.7,6.04734942]
[1755999502237,0.042,4788.8,4788.7,6.33434942]
[1755999509334,0.042,4788.8,4788.7,4.2461]
[1755999509665,0.042,4788.8,4788.7,6.33434942]
[1755999511663,0.042,4788.8,4788.7,4.2461]
[1755999512168,0.3116,4788.8,4788.7,3.505]
[1755999512353,0.3116,4788.8,4788.0,0.001]
[1755999512550,0.1048,4788.5,4788.1,3.505]
[1755999512763,0.1048,4788.5,4788.2,2.08843011]
[1755999512973,0.1048,4788.5,4788.3,3.505]
[1755999513268,0.1048,4788.5,4788.3,6.04751662]
[1755999513478,0.1048,4788.5,4788.4,2.08838025]
[1755999513678,0.3536,4788.8,4788.4,2.08838025]
[1755999513679,0.042,4788.8,4788.7,2.08824942]
[1755999513838,0.042,4788.8,4788.7,6.43914942]
[1755999515943,0.042,4788.8,4788.7,6.47434942]
[1755999519046,0.042,4788.8,4788.7,7.13434942]
[1755999521664,0.002,4789.0,4788.9,2.7481622]
[1755999521861,0.002,4789.0,4788.9,6.5391622]
[1755999522074,0.002,4789.0,4788.9,6.9932622]
[1755999522391,0.002,4789.0,4788.9,9.9932622]
[1755999522392,1e-08,4789.0,4788.9,9.9932622]
[1755999522682,1e-08,4789.0,4788.9,8.7351402]
[1755999522886,1e-08,4789.0,4788.9,12.1351402]
[1755999529296,1e-08,4789.0,4788.9,12.2399402]
[1755999531199,0.002,4790.0,4789.9,2.74772625]
[1755999531397,0.002,4790.0,4789.9,8.74717817]
[1755999531597,0.002,4790.0,4789.9,9.21397817]
[1755999531903,0.02,4790.8,4790.7,2.08737762]
[1755999532102,0.02,4790.8,4790.7,6.55427762]
[1755999532287,0.02,4790.8,4790.7,7.12507762]
[1755999532488,0.02,4790.8,4790.7,8.04632988]
[1755999536504,0.02,4790.8,4790.7,7.27562988]
[1755999536700,0.02,4790.8,4790.7,7.27462988]
[1755999538579,0.02,4790.8,4790.7,7.74142988]
[1755999539081,0.02,4790.8,4790.7,8.04532988]
[1755999540429,0.02,4790.8,4790.7,7.74142988]
[1755999540738,0.02,4790.8,4790.7,7.27462988]
[1755999541427,0.119,4790.8,4790.7,3.11262988]
[1755999541721,0.119,4790.8,4790.7,5.69337762]
[1755999542987,0.2914,4790.8,4790.7,0.104]
[1755999543186,0.2914,4790.8,4790.7,5.69337762]
[1755999543609,0.119,4790.8,4790.7,5.69337762]
[1755999543911,0.119,4790.8,4790.7,3.606]
[1755999544527,0.2914,4790.8,4790.7,3.502]
[1755999544826,0.2914,4790.8,4790.5,0.104]
[1755999545110,0.2914,4790.8,4789.9,3.69269393]
[1755999545111,0.1724,4790.7,4790.6,3.502]
[1755999546185,0.1962,4790.7,4790.6,3.502]
[1755999546782,0.1962,4790.7,4790.6,3.501]
[1755999547097,0.1962,4790.7,4790.4,3.501]
[1755999547294,3.0,4790.5,4790.4,3.501]
[1755999547506,3.3736,4790.5,4790.4,3.501]
[1755999548013,3.3753,4790.5,4790.4,3.501]
[1755999548416,3.3753,4790.5,4789.9,1.605]
[1755999548719,0.0017,4790.4,4790.0,3.501]
[1755999548884,0.2669,4790.1,4790.0,3.501]
[1755999549086,0.3709,4790.1,4790.0,3.501]
[1755999551620,0.2669,4790.1,4790.0,3.501]
[1755999552529,0.104,4790.6,4790.1,2.08763908]
[1755999552683,0.104,4790.6,4789.9,1.709]
[1755999552684,0.104,4790.6,4790.2,3.502]
[1755999553017,0.104,4790.6,4789.9,1.605]
[1755999553018,0.0027,4790.1,4789.9,1.605]
[1755999553219,0.0027,4790.1,4790.0,3.501]
[1755999553930,0.0027,4790.1,4790.0,5.58868267]
[1755999554085,0.02,4790.8,4790.1,2.08763908]
[1755999554281,0.02,4790.8,4790.2,3.501]
[1755999554488,0.104,4790.6,4790.2,5.58859091]
[1755999554898,0.104,4790.6,4790.2,6.05539091]
[1755999555093,0.104,4790.6,4790.3,2.08754031]
[1755999555499,0.104,4790.6,4790.2,6.05539432]
[1755999556310,0.104,4790.6,4790.2,3.9678]
[1755999556511,0.104,4790.6,4790.3,2.08755192]
[1755999556716,0.104,4790.6,4790.4,3.502]
[1755999556928,0.104,4790.6,4790.4,5.58949525]
[1755999557222,0.104,4790.6,4790.5,2.08746477]
[1755999557609,0.104,4790.6,4790.4,3.502]
[1755999560106,0.104,4790.6,4790.5,3.502]
[1755999561538,0.3736,4790.6,4789.9,1.605]
[1755999561834,0.3736,4790.6,4790.0,3.501]
[1755999561835,0.104,4790.3,4790.0,3.501]
[1755999562350,0.104,4790.3,4789.9,1.605]
[1755999562351,0.104,4790.3,4789.9,3.69271715]
[1755999562510,0.104,4790.3,4790.1,3.501]
[1755999562709,0.099,4790.2,4790.1,3.501]
[1755999563321,0.099,4790.2,4789.9,1.605]
[1755999563526,0.099,4790.2,4790.0,3.501]
[1755999563722,0.099,4790.2,4790.1,3.501]
[1755999566435,0.099,4790.2,4789.9,1.605]
[1755999566643,0.099,4790.2,4790.1,3.501]
[1755999567006,0.203,4790.2,4790.1,3.501]
[1755999567206,0.203,4790.2,4789.9,1.605]
[1755999567406,0.203,4790.2,4790.0,3.501]
[1755999568941,0.203,4790.2,4789.9,1.605]
[1755999569133,0.203,4790.2,4790.1,3.501]
[1755999569923,0.203,4790.2,4789.9,1.605]
[1755999570211,0.203,4790.2,4790.0,3.501]
[1755999570435,0.203,4790.2,4789.9,1.605]
[1755999570744,0.203,4790.2,4790.0,3.501]
[1755999571920,0.203,4790.2,4790.1,3.501]
[1755999573442,0.203,4790.2,4789.9,1.605]
[1755999573650,0.203,4790.2,4790.1,3.501]
[1755999574154,0.104,4790.2,4790.1,3.501]
[1755999574360,0.104,4790.2,4790.1,3.957]
[1755999575559,0.104,4790.2,4790.1,3.501]
[1755999575759,0.104,4790.2,4790.1,3.7898]
[1755999575968,0.104,4790.2,4790.1,4.2458]
[1755999576837,0.104,4790.2,4790.1,6.33343908]
[1755999577238,0.104,4790.2,4790.1,4.2458]
[1755999577781,0.104,4790.2,4790.1,6.33343908]
[1755999578642,3.0,4790.5,4790.2,2.08756425]
[1755999578844,3.104,4790.5,4790.4,0.2888]
[1755999579144,3.104,4790.5,4790.4,0.7448]
[1755999579564,0.104,4790.5,4790.4,0.7448]
[1755999579872,0.104,4790.5,4790.4,2.83230835]
[1755999580073,0.104,4790.5,4790.4,0.7448]
[1755999580574,0.104,4790.5,4790.3,3.501]
[1755999580781,0.104,4790.5,4790.4,0.7448]
[1755999581862,0.0688,4790.5,4790.4,0.7448]
[1755999582980,0.0688,4790.5,4790.4,2.83230835]
[1755999583167,0.0708,4790.5,4790.4,2.83230835]
[1755999584868,0.0708,4790.5,4790.4,3.67449704]
[1755999585074,0.002,4790.5,4790.4,4.43849704]
[1755999585271,0.002,4790.5,4790.4,4.52213004]
[1755999585474,0.02,4790.8,4790.7,2.74737762]
[1755999585685,0.02,4791.8,4791.7,2.086942]
[1755999585889,0.02,4791.8,4791.7,7.481742]
[1755999586094,0.02,4791.8,4791.7,7.937742]
[1755999586259,0.02,4791.8,4791.7,8.041742]
[1755999586467,0.02,4791.8,4791.7,8.701742]
[1755999586667,0.02,4791.8,4791.7,9.78061726]
[1755999588371,0.02,4791.8,4791.7,6.27961726]
[1755999588563,0.02,4791.8,4791.7,9.78061726]
[1755999588765,0.02,4791.8,4791.7,9.88461726]
[1755999589274,0.02,4791.8,4791.7,9.12061726]
[1755999590265,0.02,4791.8,4791.7,5.61961726]
[1755999590491,0.02,4791.8,4791.7,7.295942]
[1755999590992,0.02,4791.8,4791.7,8.036242]
[1755999595471,0.02,4791.8,4791.7,8.696242]
[1755999595668,0.02,4791.8,4791.7,8.592242]
[1755999596363,0.02,4791.8,4791.7,8.696242]
[1755999596567,0.02,4791.8,4791.7,9.77456733]
[1755999597188,0.02,4791.8,4791.7,9.87856733]
[1755999599067,0.02,4791.8,4791.7,6.37856733]
[1755999599268,0.02,4791.8,4791.7,9.87756733]
[1755999599472,0.02,4791.8,4791.7,9.77356733]
[1755999600294,0.02,4791.8,4791.7,8.37326733]
[1755999600791,0.02,4791.8,4791.7,7.294942]
[1755999600994,0.314,4791.8,4791.7,7.294942]
[1755999601197,0.022,4791.8,4791.7,7.294942]
[1755999601574,0.022,4791.8,4791.7,8.035242]
[1755999605008,0.022,4791.8,4791.7,7.597342]
[1755999605176,0.022,4791.8,4791.7,9.04746772]
[1755999606882,0.022,4791.8,4791.7,9.70746772]
[1755999607799,0.022,4791.8,4791.7,8.60956772]
[1755999608107,0.022,4791.8,4791.7,9.04746772]
[1755999610011,0.022,4791.8,4791.7,8.30616772]
[1755999610607,0.022,4791.8,4791.7,9.04646772]
[1755999611932,0.022,4791.8,4791.7,7.293942]
[1755999613131,0.022,4791.8,4791.7,8.034242]
[1755999621651,0.022,4791.8,4791.7,8.694242]
[1755999626344,0.002,4792.3,4792.2,2.74672426]
[1755999626546,0.02,4792.8,4792.7,2.74650656]
[1755999626853,0.02,4792.8,4792.7,8.13390656]
[1755999627061,0.02,4792.8,4792.7,8.69380656]
[1755999629427,0.02,4792.8,4792.7,5.19680656]
[1755999629768,0.119,4792.8,4792.7,7.29150656]
[1755999630456,0.119,4792.8,4792.7,7.84936836]
[1755999630657,0.119,4792.8,4792.7,7.29150656]
[1755999630958,0.02,4792.8,4792.7,7.57790656]
[1755999631136,0.02,4792.8,4792.7,8.03380656]
[1755999631338,0.02,4792.8,4792.7,7.57790656]
[1755999631736,0.02,4792.8,4792.7,8.03380656]
[1755999631924,0.02,4792.8,4792.7,9.0941797]
[1755999632130,0.02,4792.8,4792.7,9.7541797]
[1755999633142,0.02,4792.8,4792.7,5.5148797]
[1755999633343,0.02,4792.8,4792.7,9.7541797]
[1755999634368,0.02,4792.8,4792.7,9.2982797]
[1755999634542,0.02,4792.8,4792.7,9.0118797]
[1755999634863,0.022,4792.8,4792.7,9.7541797]
[1755999641389,1e-08,4792.8,4792.7,9.7541797]
[1755999644689,1e-08,4792.8,4792.7,9.8377587]
[1755999645056,1e-08,4792.8,4792.7,9.7337587]
[1755999645289,1e-08,4792.8,4792.7,9.8377587]
[1755999646253,1e-08,4792.8,4792.7,6.3407587]
[1755999646459,1e-08,4792.8,4792.7,9.2972797]
[1755999646888,1e-08,4792.8,4792.7,9.7531797]
[1755999647663,1e-08,4792.8,4792.7,9.2972797]
[1755999647863,1e-08,4792.8,4792.7,9.0108797]
[1755999648062,0.09900001,4792.8,4792.7,9.0108797]
[1755999648769,1e-08,4792.8,4792.7,9.0108797]
[1755999649095,1e-08,4792.8,4792.7,9.7536797]
[1755999649871,1e-08,4792.8,4792.7,9.0108797]
[1755999650795,1e-08,4792.8,4792.7,9.7536797]
[1755999651198,1e-08,4792.8,4792.7,16.38216035]
[1755999651496,1e-08,4792.8,4792.7,19.36173935]
[1755999652500,1e-08,4793.3,4793.2,2.7462889]
[1755999652666,1e-08,4793.3,4793.2,13.66384474]
[1755999652997,1e-08,4793.3,4793.2,14.09584474]
[1755999655596,0.00100001,4793.3,4793.2,13.35304474]
[1755999655794,1e-08,4793.3,4793.2,13.45204474]
[1755999655998,1e-08,4793.3,4793.2,6.82356409]
[1755999656206,1e-08,4793.3,4793.2,6.72456409]
[1755999656602,1e-08,4793.3,4793.2,7.03536409]
[1755999656782,1e-08,4793.3,4793.2,6.72456409]
[1755999657200,1e-08,4793.3,4793.2,7.46736409]
[1755999657397,1e-08,4793.3,4793.2,7.03536409]
[1755999657712,1e-08,4793.3,4793.2,14.09584474]
[1755999659578,1e-08,4793.3,4793.2,17.09584474]
[1755999659905,1e-08,4793.3,4793.2,17.31214474]
[1755999660610,0.02,4794.8,4794.7,2.08563622]
[1755999660808,0.02,4794.8,4794.7,7.18463622]
[1755999660809,0.119,4794.8,4794.7,7.18463622]
[1755999661496,0.119,4794.8,4794.7,7.28863622]
[1755999661821,0.02,4794.8,4794.7,7.94863622]
[1755999662115,0.02,4794.8,4794.7,9.69487013]
[1755999662342,0.02,4794.8,4794.7,16.32335078]
[1755999662816,1e-08,4794.8,4794.7,16.32335078]
[1755999663318,1e-08,4794.8,4794.7,8.95207013]
[1755999663518,0.09900001,4794.8,4794.7,8.95207013]
[1755999664216,1e-08,4794.8,4794.7,8.95207013]
[1755999664416,0.09900001,4794.8,4794.7,8.95207013]
[1755999665223,0.09900001,4794.8,4794.7,7.94863622]
[1755999667909,0.09900001,4794.8,4794.7,3.79363622]
[1755999668109,0.29530001,4794.8,4794.7,7.28763622]
[1755999668531,0.29530001,4794.8,4794.7,5.202]
[1755999669313,0.29730001,4794.8,4794.7,5.202]
[1755999669625,0.29730001,4794.8,4794.7,5.098]
[1755999670024,0.10100001,4794.8,4794.7,7.18363622]
[1755999670618,0.00200001,4794.8,4794.7,7.18363622]
[1755999671320,0.10100001,4794.8,4794.7,7.18363622]
[1755999672132,0.29640001,4794.8,4794.7,5.098]
[1755999672338,0.29640001,4794.8,4794.7,1.604]
[1755999672533,0.29640001,4794.8,4794.7,5.098]
[1755999672916,0.29640001,4794.8,4794.7,3.494]
[1755999676052,0.10100001,4794.8,4794.7,3.494]
[1755999676544,0.10100001,4794.8,4794.7,5.57963622]